bitfinex-derivatives/quotes_ETHF0:USTF0_20250114
["timestamp","ask_amount","ask_price","bid_price","bid_amount"]
[1736895794913,0.4734,3235.2,3234.6,1.279]
[1736895795114,0.30925,3234.7,3234.6,1.279]
[1736895795314,0.77305,3235.1,3234.5,40.8]
[1736895795315,0.30926,3234.6,3234.5,42.079]
[1736895796414,0.30926,3234.6,3234.5,40.8]
[1736895797210,3.55258871,3234.6,3234.5,40.8]
[1736895797418,0.30934,3233.8,3233.7,3.2078]
[1736895797623,0.30934,3233.8,3233.7,4.4868]
[1736895797828,0.30934,3233.8,3233.7,44.0078]
[1736895798129,0.30934,3233.8,3233.7,40.8]
[1736895799521,1.7406,3234.5,3233.7,44.0078]
[1736895799823,3.42744686,3234.4,3233.8,3.2078]
[1736895800021,0.30929,3234.3,3233.9,0.4666]
[1736895800234,0.3093,3234.2,3234.1,0.3093]
[1736895800634,0.30931,3234.1,3234.0,0.30931]
[1736895801835,0.3093,3234.2,3234.1,0.30931]
[1736895802142,0.30931,3234.2,3234.0,0.30931]
[1736895802339,0.30931,3234.2,3233.9,1.7456]
[1736895802643,0.30931,3234.2,3234.0,0.30931]
[1736895803142,0.30931,3234.1,3234.0,0.30931]
[1736895804137,3.42744686,3234.4,3233.9,1.7456]
[1736895804542,0.30929,3234.3,3234.2,3.2078]
[1736895805140,0.30929,3234.3,3234.2,3.5171]
[1736895805340,0.30929,3234.3,3234.2,3.2078]
[1736895807037,0.4759,3234.5,3234.2,3.2078]
[1736895807242,3.2078,3234.9,3234.2,3.2078]
[1736895807437,0.30929,3234.3,3234.2,3.2078]
[1736895815146,0.30929,3234.3,3233.7,40.8]
[1736895815147,0.30934,3233.8,3233.7,44.0078]
[1736895817541,3.76607128,3233.8,3233.7,44.0078]
[1736895818148,3.76607128,3233.8,3233.7,40.8]
[1736895819349,0.30938,3233.3,3233.2,3.2078]
[1736895819946,0.30938,3233.3,3233.2,44.0078]
[1736895823047,0.30938,3233.5,3233.2,44.0078]
[1736895823251,0.79902,3234.0,3233.9,0.30933]
[1736895823452,0.30932,3234.1,3234.0,0.3093]
[1736895823756,3.69247926,3234.1,3234.0,0.3093]
[1736895823950,3.69247926,3234.1,3234.0,41.1093]
[1736895825749,3.69247926,3234.1,3234.0,40.8]
[1736895825954,0.30937,3233.5,3233.4,1.288]
[1736895826349,3.82047193,3233.5,3233.4,1.288]
[1736895828756,0.30935,3233.8,3233.7,0.30934]
[1736895828959,0.4534,3234.0,3233.5,0.9375]
[1736895828960,0.9333,3234.0,3233.5,0.9375]
[1736895829257,0.30936,3233.6,3233.5,1.24686]
[1736895830050,0.30935,3233.7,3233.6,0.30935]
[1736895831356,0.30937,3233.4,3233.3,3.51718]
[1736895831567,0.30937,3233.4,3233.3,4.80518]
[1736895837067,0.30937,3233.4,3233.3,3.51718]
[1736895840569,0.30937,3233.6,3233.5,0.30935]
[1736895840869,0.30932,3234.1,3234.0,0.30931]
[1736895841959,0.30932,3234.1,3234.0,41.10931]
[1736895842159,0.30927,3234.6,3234.5,0.30926]
[1736895842567,0.30929,3234.4,3234.3,0.30927]
[1736895842769,1.71329,3234.9,3234.3,0.4507]
[1736895842965,0.30928,3234.5,3234.4,0.30926]
[1736895843566,3.2078,3235.8,3234.4,9.20659848]
[1736895843874,16.55176296,3236.8,3235.7,5.63289848]
[1736895844170,3.70179422,3236.7,3236.0,5.63289848]
[1736895844372,3.70179422,3236.7,3236.1,0.30911]
[1736895844666,0.30909,3236.4,3236.3,0.30909]
[1736895845259,3.24519422,3236.7,3236.2,40.8]
[1736895845461,0.76112,3237.2,3236.6,2.42509848]
[1736895845667,0.4659,3237.3,3236.6,2.42509848]
[1736895845668,0.309,3237.3,3237.1,0.30902]
[1736895846075,3.53654981,3237.2,3237.1,0.30902]
[1736895846469,3.84556981,3237.2,3237.0,3.51683]
[1736895846764,0.30902,3237.2,3237.0,3.51683]
[1736895847162,3.3663341,3237.1,3237.0,3.51683]
[1736895847470,0.30909,3236.4,3236.1,1.59711]
[1736895847669,0.4876,3237.0,3236.1,1.288]
[1736895847967,0.3091,3236.3,3236.0,0.30912]
[1736895848165,0.30914,3235.9,3235.8,3.2078]
[1736895848468,6.3908642,3235.9,3235.1,3.7002]
[1736895848666,0.30921,3235.2,3234.9,1.59623]
[1736895848866,0.3092,3235.3,3235.1,0.30921]
[1736895849062,0.4955,3235.8,3235.0,3.2078]
[1736895849261,0.30914,3235.9,3235.6,0.30916]
[1736895849465,0.30914,3235.9,3235.7,0.30915]
[1736895849666,3.21439543,3235.8,3235.6,0.30916]
[1736895849861,3.21439543,3235.8,3235.5,3.2078]
[1736895850067,0.30916,3235.6,3235.5,3.2078]
[1736895850466,3.069916,3235.6,3235.5,3.2078]
[1736895855477,2.760756,3235.6,3235.5,3.51697]
[1736895855674,0.4521,3236.7,3235.5,8.2078]
[1736895855878,0.30907,3236.6,3236.4,0.30908]
[1736895856072,3.42475083,3236.4,3236.2,3.2078]
[1736895856268,0.30909,3236.4,3236.3,40.8]
[1736895856581,3.61269307,3236.3,3236.2,3.2078]
[1736895856774,0.77281,3236.1,3235.8,3.2078]
[1736895856981,0.30917,3235.5,3235.4,3.2078]
[1736895857875,3.52793357,3235.5,3235.4,3.2078]
[1736895859377,3.21876357,3235.5,3235.0,3.6875]
[1736895859576,0.30919,3235.4,3235.2,0.3092]
[1736895860872,0.30919,3235.3,3235.2,3.517]
[1736895862979,0.30919,3235.3,3235.2,3.2078]
[1736895863180,3.59583335,3235.3,3235.2,3.2078]
[1736895863784,0.30919,3235.3,3235.2,3.2078]
[1736895864076,0.30928,3234.4,3234.3,3.2078]
[1736895864482,0.30928,3234.4,3234.3,44.0078]
[1736895864779,3.42290071,3234.4,3233.6,0.452]
[1736895864983,3.42290071,3234.4,3234.1,0.3093]
[1736895864984,0.30929,3234.3,3234.1,0.3093]
[1736895865285,3.73218071,3234.5,3234.3,0.30929]
[1736895865484,0.4651,3234.6,3234.5,0.30927]
[1736895865782,0.30928,3234.4,3234.3,3.6598]
[1736895865969,3.37618666,3234.6,3234.5,0.30927]
[1736895866173,0.30925,3234.7,3234.6,0.30926]
[1736895866377,0.30925,3234.7,3234.6,40.8]
[1736895866773,0.30925,3234.7,3234.3,3.2078]
[1736895866774,0.30928,3234.4,3234.3,3.2078]
[1736895866980,3.23056315,3234.7,3234.3,3.2078]
[1736895867177,3.23056315,3234.7,3234.4,40.8]
[1736895867374,0.4954,3234.9,3234.4,44.19086674]
[1736895867581,0.4651,3235.3,3234.7,3.2078]
[1736895867878,3.38870943,3235.2,3235.1,0.30921]
[1736895868084,0.30924,3234.8,3234.7,3.2078]
[1736895868274,0.30921,3235.2,3235.0,0.30922]
[1736895868479,0.30921,3235.2,3234.7,0.30925]
[1736895868680,0.30921,3235.2,3234.6,3.2078]
[1736895868877,3.2078,3236.5,3235.0,3.2078]
[1736895869079,0.30914,3235.9,3235.8,0.30914]
[1736895869280,3.31412555,3235.9,3235.5,1.287]
[1736895869479,0.30914,3235.9,3235.8,0.30915]
[1736895869681,0.30911,3236.2,3236.1,0.30912]
[1736895869881,0.30912,3236.1,3236.0,3.51692]
[1736895870077,0.30912,3236.1,3236.0,44.0078]
[1736895870379,0.4758,3236.5,3236.0,44.0078]
[1736895870380,0.30909,3236.5,3236.3,0.30909]
[1736895870573,0.30909,3236.5,3236.4,3.2078]
[1736895870786,0.30912,3236.1,3236.0,44.0078]
[1736895871481,0.30912,3236.1,3236.0,44.31693]
[1736895871675,0.30911,3236.2,3236.0,44.0078]
[1736895871887,0.30905,3236.8,3236.1,3.70776674]
[1736895872180,3.3839499,3236.7,3236.5,3.2078]
[1736895872379,3.6930199,3236.7,3236.5,3.51687]
[1736895872586,0.30907,3236.6,3236.5,3.2078]
[1736895872782,3.46294178,3236.6,3236.2,1.287]
[1736895872986,3.77201178,3236.6,3236.4,0.30908]
[1736895873181,0.30906,3236.8,3236.4,3.2078]
[1736895873484,3.22488749,3236.7,3236.6,0.30906]
[1736895873887,0.4729,3237.3,3236.5,1.24769]
[1736895874081,0.30903,3237.0,3236.8,0.30904]
[1736895874282,0.4729,3237.3,3236.5,3.99187]
[1736895874283,0.30906,3236.7,3236.5,3.99187]
[1736895874981,0.30907,3236.6,3236.5,3.2078]
[1736895875186,0.30907,3236.6,3236.5,3.51688]
[1736895875187,3.40458041,3236.6,3236.5,3.51688]
[1736895875381,0.30903,3237.0,3236.6,0.30906]
[1736895875591,0.30907,3236.7,3236.5,3.51687]
[1736895875781,3.87356568,3236.7,3236.5,3.51687]
[1736895876182,0.30907,3236.6,3236.5,3.51687]
[1736895876380,3.79087786,3236.6,3236.5,3.2078]
[1736895876687,3.79087786,3236.6,3236.1,0.475]
[1736895876688,6.68960786,3236.8,3236.4,3.2078]
[1736895876882,0.30907,3236.7,3236.5,0.30907]
[1736895877084,3.48180786,3236.7,3236.6,0.30907]
[1736895877289,0.30903,3237.0,3236.5,40.8]
[1736895877593,0.30902,3237.2,3237.0,0.30903]
[1736895877882,0.4729,3237.3,3236.8,3.2078]
[1736895878084,0.30904,3236.9,3236.8,3.2078]
[1736895878479,3.65524765,3236.9,3236.8,3.2078]
[1736895878981,3.34620765,3236.9,3236.8,3.2078]
[1736895879185,0.30903,3237.1,3236.9,0.30904]
[1736895879385,0.30903,3237.1,3236.8,3.2078]
[1736895879386,0.4729,3237.3,3236.8,3.2078]
[1736895879591,3.24744213,3237.2,3237.1,0.30901]
[1736895880186,0.30902,3237.1,3236.9,0.30903]
[1736895880491,3.24744213,3237.2,3236.8,3.2078]
[1736895880683,0.30902,3237.1,3236.9,0.30903]
[1736895881187,3.55646213,3237.2,3237.0,0.30903]
[1736895881493,0.30902,3237.1,3237.0,0.30903]
[1736895881794,3.55646213,3237.2,3237.0,0.30902]
[1736895881985,0.30902,3237.1,3237.0,0.30902]
[1736895882882,0.30902,3237.1,3236.8,3.2078]
[1736895882883,3.24744213,3237.2,3236.8,3.2078]
[1736895883091,0.30903,3237.1,3236.8,3.2078]
[1736895883284,0.30903,3237.1,3237.0,0.30903]
[1736895883784,0.30904,3236.9,3236.8,3.2078]
[1736895884784,3.8424516,3236.9,3236.8,3.2078]
[1736895885486,3.5334116,3236.9,3236.2,3.2078]
[1736895885689,3.8424616,3236.9,3236.8,0.30905]
[1736895885888,3.5334116,3236.9,3236.8,0.30905]
[1736895886399,0.30901,3237.3,3237.2,0.30901]
[1736895886595,0.30901,3237.3,3236.8,0.30905]
[1736895886596,0.30902,3237.2,3237.1,3.51681]
[1736895887094,0.30902,3237.2,3237.1,44.31681]
[1736895888385,0.4733,3237.7,3237.1,44.0078]
[1736895888586,0.30901,3237.3,3237.2,0.30901]
[1736895889093,3.21572672,3237.6,3237.1,44.0078]
[1736895889293,0.30901,3237.4,3237.3,0.30899]
[1736895890589,3.31343288,3237.4,3236.9,0.4807]
[1736895890896,0.30905,3236.9,3236.8,0.30905]
[1736895891086,0.30905,3236.9,3236.8,41.10905]
[1736895891692,3.75159621,3236.9,3236.8,40.8]
[1736895891896,3.75159621,3236.9,3236.8,41.10905]
[1736895892193,0.30906,3236.7,3236.6,3.2078]
[1736895892597,3.63260294,3236.7,3236.6,3.2078]
[1736895892794,3.32354294,3236.7,3235.7,0.9288]
[1736895892995,0.30915,3235.8,3235.7,1.23795]
[1736895894900,0.30915,3235.8,3235.7,42.03795]
[1736895895293,0.30912,3236.2,3236.1,0.30911]
[1736895895602,0.30912,3236.1,3236.0,0.30912]
[1736895895993,0.30912,3236.1,3236.0,40.8]
[1736895896200,3.5862541,3236.1,3236.0,40.8]
[1736895899504,3.2078,3236.3,3236.2,0.30911]
[1736895899704,3.5169,3236.3,3236.2,0.30911]
[1736895899899,0.30908,3236.5,3236.1,0.30912]
[1736895900097,0.30908,3236.5,3236.4,0.30909]
[1736895900298,0.30909,3236.4,3236.3,0.30909]
[1736895900597,0.30908,3236.5,3236.4,0.30908]
[1736895901001,6.57685248,3236.7,3236.0,41.2953]
[1736895901207,0.30903,3237.1,3237.0,0.30903]
[1736895901420,0.4961,3237.3,3236.9,0.30904]
[1736895901611,0.30904,3237.0,3236.9,0.30904]
[1736895901916,0.30904,3237.0,3236.9,41.10904]
[1736895902114,3.45367189,3237.2,3236.9,40.8]
[1736895902320,0.309,3237.4,3237.1,0.30902]
[1736895902520,3.2078,3238.1,3237.1,0.30902]
[1736895902521,0.3089,3238.4,3238.0,0.30894]
[1736895902814,3.2078,3239.1,3238.2,6.14276674]
[1736895902815,16.21789696,3239.1,3238.2,6.14276674]
[1736895903022,15.26069696,3239.1,3238.6,3.2078]
[1736895903216,3.54819816,3238.9,3238.6,3.2078]
[1736895903521,3.54819816,3239.0,3238.6,3.2078]
[1736895903522,15.26069696,3239.1,3238.7,40.8]
[1736895903712,0.30886,3238.8,3238.7,40.8]
[1736895903910,3.74707224,3238.8,3238.7,40.8]
[1736895904114,0.30886,3238.8,3238.7,40.8]
[1736895905414,0.30886,3238.8,3238.6,3.2078]
[1736895905415,3.54206755,3238.8,3238.6,3.2078]
[1736895905611,0.30892,3238.2,3238.1,4.5418]
[1736895906111,0.30892,3238.2,3238.1,3.2078]
[1736895907509,3.89198841,3238.2,3238.1,3.2078]
[1736895909023,4.35537841,3238.2,3237.4,5.04615674]
[1736895909317,0.30899,3237.4,3237.3,3.2078]
[1736895909724,0.30899,3237.4,3237.0,1.333]
[1736895909725,3.43120875,3237.4,3237.0,1.333]
[1736895910115,0.30901,3237.3,3237.1,0.30902]
[1736895910316,3.6745,3237.7,3237.0,1.333]
[1736895910517,3.6981221,3237.2,3237.0,1.64202]
[1736895910714,0.30901,3237.2,3237.0,0.30902]
[1736895911524,3.6745,3237.7,3236.8,7.47576674]
[1736895911712,0.30902,3237.2,3237.0,0.30903]
[1736895912118,3.36491099,3237.6,3236.8,7.47576674]
[1736895912318,0.30901,3237.2,3236.8,7.47576674]
[1736895912719,0.30901,3237.2,3236.9,1.333]
[1736895912924,0.30901,3237.2,3237.0,0.30903]
[1736895913420,0.30901,3237.2,3237.1,0.30902]
[1736895913826,0.30901,3237.2,3236.9,1.333]
[1736895914228,0.30901,3237.2,3237.0,0.30903]
[1736895914626,3.36491099,3237.6,3237.1,2.93496674]
[1736895914822,0.30898,3237.6,3237.5,0.30898]
[1736895915022,0.30897,3237.7,3237.5,0.30898]
[1736895915224,0.30897,3237.7,3237.6,40.8]
[1736895916831,0.30901,3237.2,3237.1,2.93496674]
[1736895917224,0.30901,3237.2,3237.1,3.24398674]
[1736895917428,0.30901,3237.2,3237.1,43.73496674]
[1736895917825,3.2078,3237.7,3236.7,2.93496674]
[1736895918133,0.30902,3237.2,3237.0,0.30902]
[1736895918428,0.77241,3237.8,3237.2,0.30901]
[1736895918633,0.309,3237.3,3237.2,0.30901]
[1736895918934,3.34390233,3237.4,3237.3,0.309]
[1736895919131,0.30898,3237.6,3237.5,0.30898]
[1736895920034,3.2078,3238.1,3237.4,3.2078]
[1736895920235,0.30896,3237.8,3237.6,0.30897]
[1736895920439,3.29261811,3237.8,3237.4,3.2078]
[1736895920631,0.30897,3237.7,3237.6,0.30897]
[1736895920828,0.30897,3237.7,3237.5,3.24394674]
[1736895921429,0.30897,3237.6,3237.5,3.24394674]
[1736895922033,0.30897,3237.6,3237.5,2.93496674]
[1736895922835,3.29261811,3237.8,3237.5,2.93496674]
[1736895923035,0.30892,3238.2,3238.1,0.30892]
[1736895923630,0.30893,3238.1,3238.0,0.78363]
[1736895924339,0.30893,3238.1,3238.0,0.4747]
[1736895924637,0.30893,3238.1,3238.0,41.2747]
[1736895928436,0.30894,3238.0,3237.9,3.2078]
[1736895928635,0.75994,3238.0,3237.9,3.2078]
[1736895928835,4.23762458,3238.0,3237.9,3.2078]
[1736895930641,3.92868458,3238.0,3237.3,42.9293]
[1736895930844,0.30899,3237.4,3237.3,42.9293]
[1736895932632,0.30899,3237.4,3237.3,41.2873]
[1736895932831,0.30899,3237.4,3237.3,40.8]
[1736895933839,0.30898,3237.6,3237.5,0.30897]
[1736895934039,0.451,3238.0,3237.5,2.42015973]
[1736895934239,3.45345752,3237.7,3237.6,3.51676]
[1736895934442,3.45345752,3237.9,3237.6,3.2078]
[1736895934639,0.30896,3237.7,3237.6,3.51677]
[1736895934843,3.74424805,3237.7,3237.6,3.51677]
[1736895935142,0.30896,3237.7,3237.6,3.51677]
[1736895935540,0.30896,3237.7,3237.6,0.30897]
[1736895935840,0.4611,3238.3,3237.5,2.42015973]
[1736895936037,0.30895,3237.9,3237.8,0.30895]
[1736895936234,3.636336,3237.9,3237.8,0.30895]
[1736895936443,0.30895,3237.9,3237.8,0.30895]
[1736895936838,0.30895,3237.8,3237.7,3.2078]
[1736895937139,0.30898,3237.5,3237.4,0.4826]
[1736895937943,0.30899,3237.4,3237.3,40.8]
[1736895938347,3.87954712,3237.4,3237.3,40.8]
[1736895938643,3.87954712,3237.4,3236.7,4.48945]
[1736895938644,0.30905,3236.8,3236.7,3.6994]
[1736895938843,0.30905,3236.8,3236.7,3.2078]
[1736895939049,0.30905,3236.8,3236.7,44.0078]
[1736895940651,4.45768,3237.1,3236.7,44.0078]
[1736895940652,0.30905,3236.9,3236.7,44.31685]
[1736895940944,3.53107014,3236.8,3236.7,44.0078]
[1736895941152,3.22202014,3236.8,3236.7,44.0078]
[1736895941346,0.30904,3236.9,3236.7,44.0078]
[1736895941545,0.30904,3236.9,3236.8,0.30905]
[1736895942550,0.30904,3236.9,3236.7,44.0078]
[1736895942551,0.30905,3236.8,3236.7,44.31685]
[1736895942852,0.30905,3236.8,3236.7,44.0078]
[1736895943246,0.30905,3236.8,3236.7,44.31686]
[1736895943846,3.22960518,3237.0,3236.7,44.0078]
[1736895944049,0.309,3237.4,3237.3,0.30899]
[1736895944452,0.309,3237.3,3237.2,3.51681]
[1736895944750,0.30904,3236.9,3236.8,3.2078]
[1736895944951,0.30907,3236.6,3236.5,2.93394864]
[1736895945246,0.30907,3236.6,3236.5,3.24302864]
[1736895945454,0.30907,3236.6,3236.5,44.04302864]
[1736895946344,0.30907,3236.6,3236.5,43.73394864]
[1736895946553,0.30907,3236.6,3236.5,40.8]
[1736895952055,3.58937527,3236.6,3236.5,40.8]
[1736895952351,0.30916,3235.7,3235.6,3.51696]
[1736895952551,0.30916,3235.7,3235.6,3.2078]
[1736895952753,0.30916,3235.7,3235.6,44.31696]
[1736895953057,0.30916,3235.7,3235.6,44.0078]
[1736895953254,3.63609659,3235.7,3235.6,44.0078]
[1736895953853,3.63609659,3235.7,3235.6,40.8]
[1736895956154,3.32693659,3235.7,3235.0,0.4778]
[1736895956364,0.30921,3235.1,3235.0,0.4778]
[1736895956556,0.30921,3235.1,3235.0,0.78702]
[1736895956751,1.22239,3235.8,3235.0,41.2778]
[1736895957058,0.3092,3235.3,3235.2,0.3092]
[1736895957359,0.3092,3235.2,3235.1,0.30921]
[1736895957561,0.7729,3235.7,3235.0,41.2778]
[1736895957860,0.30919,3235.4,3235.3,0.30918]
[1736895959651,0.30917,3235.7,3235.6,0.30916]
[1736895959962,0.30917,3235.7,3235.6,2.73226142]
[1736895959963,0.30916,3235.7,3235.6,2.73226142]
[1736895960156,3.2078,3236.3,3235.6,5.63090142]
[1736895960460,0.30914,3236.0,3235.9,0.30913]
[1736895961158,3.2078,3236.3,3235.7,41.7482]
[1736895961355,0.30912,3236.1,3236.0,0.30912]
[1736895961558,3.2078,3236.3,3236.1,0.30912]
[1736895961559,3.2743241,3236.2,3236.1,0.30912]
[1736895961861,0.30909,3236.4,3236.3,0.3091]
[1736895962951,3.55700972,3236.7,3236.2,2.42310142]
[1736895963164,3.55700972,3236.7,3236.4,0.30908]
[1736895963365,1.69655,3237.2,3236.2,2.42310142]
[1736895963366,0.30906,3236.8,3236.2,2.42310142]
[1736895963558,0.30906,3236.8,3236.7,0.30906]
[1736895963762,3.35538266,3236.7,3236.6,0.30907]
[1736895963955,3.66444266,3236.8,3236.6,0.30907]
[1736895964266,3.35538266,3236.7,3236.6,0.30907]
[1736895964654,0.30904,3236.9,3236.7,0.30905]
[1736895964859,3.65143154,3236.8,3236.7,0.30905]
[1736895965059,0.30906,3236.7,3236.5,5.63090142]
[1736895965264,0.30906,3236.7,3236.6,0.30907]
[1736895965666,3.65144154,3236.7,3236.6,0.30907]
[1736895966166,3.34238154,3236.7,3236.6,0.30907]
[1736895966463,3.58616751,3237.1,3236.5,3.2078]
[1736895966770,3.26547186,3236.7,3236.1,3.2078]
[1736895966969,3.2078,3237.0,3236.1,3.2078]
[1736895967266,0.30909,3236.4,3236.3,0.3091]
[1736895967458,4.03812186,3236.8,3236.1,3.2078]
[1736895967659,0.30911,3236.2,3236.1,3.51691]
[1736895967858,0.77266,3236.7,3236.1,3.2078]
[1736895967859,4.0818406,3236.7,3236.1,3.2078]
[1736895968066,0.3091,3236.3,3236.2,0.3091]
[1736895968366,0.3091,3236.4,3236.3,0.30909]
[1736895968664,3.81447626,3236.3,3236.2,0.3091]
[1736895968865,0.30911,3236.2,3236.1,3.51691]
[1736895969071,0.3091,3236.3,3236.2,0.3091]
[1736895969261,0.77261,3236.9,3236.3,0.30909]
[1736895969262,0.30909,3236.4,3236.3,0.30909]
[1736895969464,3.50537626,3236.2,3236.1,3.51692]
[1736895969769,0.30909,3236.4,3236.3,0.3091]
[1736895970161,3.61067353,3236.4,3236.3,0.3091]
[1736895970559,6.50938353,3236.4,3235.6,5.63090142]
[1736895970769,0.9573,3236.3,3235.6,5.63090142]
[1736895970969,0.30912,3236.1,3236.0,0.30912]
[1736895971171,3.29258521,3236.2,3236.1,0.30912]
[1736895972167,0.4614,3236.8,3236.0,3.2078]
[1736895972464,0.30904,3236.9,3236.8,0.30905]
[1736895972862,3.52294491,3236.9,3236.8,0.30905]
[1736895973364,0.30904,3236.9,3236.8,0.30905]
[1736895973866,0.30906,3236.8,3236.7,0.30906]
[1736895974373,3.81748871,3236.8,3236.7,0.30906]
[1736895975665,3.81747871,3236.8,3236.7,0.30906]
[1736895975862,3.81747871,3236.8,3236.5,0.4576]
[1736895976066,0.30907,3236.7,3236.6,0.30906]
[1736895976465,3.78559015,3236.7,3236.6,0.30906]
[1736895978271,3.47652015,3236.7,3236.6,0.30906]
[1736895978573,3.47652015,3236.7,3236.5,0.4576]
[1736895978574,3.9543,3237.3,3236.5,0.4576]
[1736895978770,0.30896,3237.8,3237.7,0.30896]
[1736895978965,0.30895,3237.9,3237.8,0.30895]
[1736895979167,0.9244,3238.0,3237.9,0.30894]
[1736895979168,4.1908114,3238.0,3237.9,0.30894]
[1736895979375,0.4754,3238.0,3237.9,0.30894]
[1736895979868,0.30895,3237.9,3237.8,0.30895]
[1736895980473,3.7418114,3238.0,3237.6,40.8]
[1736895980775,0.30895,3237.9,3237.8,0.30895]
[1736895981073,0.30894,3238.0,3237.9,0.30894]
[1736895981873,0.30895,3237.9,3237.8,0.30895]
[1736895982879,3.46685907,3238.3,3237.7,3.2078]
[1736895983065,0.30895,3237.8,3237.7,3.51676]
[1736895984573,0.30895,3237.8,3237.7,0.30896]
[1736895985277,0.30896,3237.8,3237.7,0.30896]
[1736895985476,0.30897,3237.7,3237.6,0.30897]
[1736895986177,0.30897,3237.7,3237.5,41.10898]
[1736895986575,3.46281174,3238.1,3237.5,41.10898]
[1736895986880,0.30897,3237.7,3237.5,41.10898]
[1736895987481,0.30899,3237.4,3237.3,3.2078]
[1736895987687,3.24134475,3237.6,3237.0,2.93216504]
[1736895987880,0.30903,3237.1,3236.9,0.78893]
[1736895988082,0.30903,3237.1,3237.0,0.30903]
[1736895988382,0.30903,3237.1,3236.9,0.78893]
[1736895988679,0.30903,3237.0,3236.9,0.78893]
[1736895988981,3.38657505,3237.4,3236.9,0.4799]
[1736895989169,0.30903,3237.0,3236.9,0.78894]
[1736895990078,0.30903,3237.1,3237.0,0.30902]
[1736895991073,0.30903,3237.0,3236.9,0.4799]
[1736895991382,0.30904,3236.9,3236.8,44.0078]
[1736895991778,3.66736463,3236.9,3236.8,44.0078]
[1736895992477,3.66736463,3236.9,3236.8,3.2078]
[1736895992672,0.77267,3236.7,3236.3,3.2078]
[1736895992876,0.30909,3236.4,3236.3,3.2078]
[1736895993277,3.86191509,3236.4,3236.3,3.2078]
[1736895993675,3.55282509,3236.4,3235.7,44.0078]
[1736895993880,0.30915,3235.8,3235.7,44.0078]
[1736895994282,0.30915,3235.8,3235.7,40.8]
[1736895994482,3.72642491,3235.8,3235.7,40.8]
[1736895995193,3.72642491,3235.8,3235.4,0.30918]
[1736895995194,3.41727491,3235.8,3235.4,0.30918]
[1736895995386,0.30917,3235.6,3235.4,0.30918]
[1736895995593,0.30915,3235.8,3235.5,40.8]
[1736895995782,0.30916,3235.6,3235.5,40.8]
[1736895996183,3.58900064,3235.6,3235.5,40.8]
[1736895996485,3.27984064,3235.6,3235.5,41.10917]
[1736895996681,3.58900064,3235.6,3235.5,41.10917]
[1736895996886,0.30916,3235.6,3235.5,40.8]
[1736895997084,3.68729225,3235.6,3235.5,40.8]
[1736895997590,3.37813225,3235.6,3235.5,40.8]
[1736895997782,3.68729225,3235.6,3235.5,40.8]
[1736895997985,0.30916,3235.6,3235.5,40.8]
[1736895998185,3.77489322,3235.6,3235.5,41.10917]
[1736895998587,3.46573322,3235.6,3235.5,41.10917]
[1736895998789,0.7727,3236.6,3235.7,0.30915]
[1736895998979,0.30914,3235.9,3235.7,0.30915]
[1736895999384,0.30914,3235.9,3235.5,43.73216504]
[1736895999591,0.30914,3235.9,3235.7,0.30915]
[1736896000293,3.46473569,3236.2,3235.5,43.73216504]
[1736896000480,0.30912,3236.1,3235.7,3.2078]
[1736896000689,0.30912,3236.1,3235.9,0.30913]
[1736896000887,3.41256555,3236.0,3235.9,0.30913]
[1736896001088,3.41256555,3236.0,3235.7,3.6999]
[1736896001291,3.72169555,3236.0,3235.8,0.30914]
[1736896001686,3.72169555,3236.0,3235.9,0.30914]
[1736896001993,3.41256555,3236.0,3235.9,0.30914]
[1736896002596,3.41256555,3236.0,3235.7,3.6999]
[1736896002794,3.72169555,3236.0,3235.8,0.30914]
[1736896003794,3.72169555,3236.0,3235.9,0.30914]
[1736896004393,3.41256555,3236.0,3235.9,0.30914]
[1736896005199,3.72169555,3236.0,3235.9,0.30914]
[1736896006796,3.72169555,3236.0,3235.8,0.30914]
[1736896007594,3.72169555,3236.0,3235.9,0.30914]
[1736896007800,0.30914,3235.9,3235.8,0.30914]
[1736896011001,0.30915,3235.8,3235.7,4.00905]
[1736896011298,0.30914,3235.9,3235.8,0.30914]
[1736896014496,0.9297,3236.3,3235.7,3.6999]
[1736896014695,0.3091,3236.3,3236.2,0.3091]
[1736896014898,3.2078,3236.5,3235.9,2.42240961]
[1736896015098,0.30911,3236.2,3236.1,0.30911]
[1736896015502,3.30660325,3236.2,3236.1,0.30911]
[1736896015892,0.3091,3236.3,3236.2,0.30911]
[1736896016293,3.78213467,3236.3,3236.2,0.30911]
[1736896016705,0.30911,3236.2,3236.1,0.30911]
[1736896016996,3.2078,3236.5,3236.0,0.4622]
[1736896017202,3.2753634,3236.2,3236.1,0.30912]
[1736896017403,3.5844534,3236.4,3236.3,0.3091]
[1736896017708,0.30909,3236.4,3236.3,0.3091]
[1736896017904,3.2753634,3236.5,3236.4,0.30909]
[1736896018105,0.30907,3236.7,3236.6,0.30907]
[1736896018497,3.75177024,3236.7,3236.6,0.30907]
[1736896018703,0.30908,3236.6,3236.5,0.30907]
[1736896019099,3.55194492,3236.6,3236.5,0.30907]
[1736896019398,3.24286492,3236.6,3236.5,0.30907]
[1736896019598,0.30905,3236.8,3236.2,3.19516961]
[1736896019599,0.30905,3236.8,3236.2,2.42240961]
[1736896019795,3.2078,3237.0,3236.3,1.23504]
[1736896020002,0.30904,3237.0,3236.9,0.30903]
[1736896020299,3.87625856,3237.0,3236.9,0.30903]
[1736896020700,0.30905,3236.9,3236.8,0.30904]
[1736896021303,3.87625856,3237.0,3236.9,0.30904]
[1736896021501,0.30905,3236.9,3236.8,0.30904]
[1736896021706,0.30905,3236.9,3236.8,0.77444]
[1736896022706,0.30905,3236.9,3236.8,0.4654]
[1736896023506,0.30904,3236.9,3236.8,0.77445]